bitfinex/quotes_ETHUSD_20240917
["timestamp","ask_amount","ask_price","bid_price","bid_amount"]
[1726597867794,6.27505535,2368.0,2367.6,2.3707]
[1726597867990,7.80554701,2367.9,2367.5,4.22376]
[1726597868931,3.58237701,2367.9,2367.5,8.44754]
[1726597869231,3.58237701,2367.9,2367.6,4.22359]
[1726597869232,1.32137701,2367.9,2367.6,4.22359]
[1726597869442,1.32137701,2368.0,2367.7,4.22348]
[1726597869732,1.32137701,2368.1,2367.8,4.22326]
[1726597870110,1.32137701,2368.1,2367.7,4.22348]
[1726597870325,5.54434701,2368.0,2367.6,2.393]
[1726597870496,6.49624,2367.9,2367.5,4.22385]
[1726597870691,6.49624,2367.9,2367.4,6.68482]
[1726597870692,4.22339,2367.8,2367.4,6.68482]
[1726597870893,2.77482739,2367.8,2367.4,6.68482]
[1726597871201,1.45345038,2367.8,2367.5,4.22382]
[1726597871416,7.81761701,2367.9,2367.5,4.22382]
[1726597872498,5.54461701,2367.9,2367.5,4.22382]
[1726597873135,1.32137701,2368.0,2367.6,4.22357]
[1726597873299,10.50418342,2368.2,2367.8,4.22329]
[1726597873641,7.42,2368.2,2368.0,4.22284]
[1726597873825,1.32137701,2368.3,2368.0,4.22284]
[1726597873997,2.72108135,2368.3,2368.0,4.22284]
[1726597874346,2.72108135,2368.3,2368.1,4.22264]
[1726597874508,1.32137701,2368.3,2368.1,4.22272]
[1726597874712,1.32137701,2368.3,2368.0,4.22295]
[1726597874898,5.54364701,2368.4,2368.0,4.22295]
[1726597875101,1.32137701,2368.3,2368.0,4.22295]
[1726597875435,5.54364701,2368.4,2368.0,4.22295]
[1726597875642,1.32137701,2368.3,2367.9,4.22302]
[1726597875937,1.32137701,2368.3,2367.9,8.4461]
[1726597876311,5.54383701,2368.3,2367.8,4.22322]
[1726597876837,1.32137701,2368.2,2367.8,4.22322]
[1726597877141,4.22299,2368.0,2367.6,4.22367]
[1726597878235,4.22368,2367.6,2367.3,2.4531]
[1726597878542,4.2238,2367.6,2367.1,2.4531]
[1726597878769,6.58093,2367.7,2367.2,8.4487]
[1726597878985,1.19145652,2367.6,2367.2,8.44862]
[1726597879331,4.22386,2367.5,2367.1,2.4531]
[1726597879680,4.22466,2367.1,2366.7,2.3671]
[1726597879967,5.54570701,2367.3,2366.7,6.59232]
[1726597880174,8.44872,2367.3,2366.7,6.59232]
[1726597880336,8.44872,2367.3,2366.6,4.22534]
[1726597880337,2.461,2367.0,2366.5,2.3671]
[1726597880530,2.461,2367.0,2366.7,4.22528]
[1726597880731,4.22466,2367.1,2366.5,6.59261]
[1726597880936,4.22466,2367.1,2366.6,4.22544]
[1726597881764,4.85733988,2367.2,2366.5,2.3671]
[1726597881927,4.22486,2367.0,2366.5,6.59274]
[1726597882132,4.22486,2367.0,2366.5,6.59265]
[1726597882384,4.22486,2367.0,2366.5,10.81821]
[1726597882572,4.22486,2367.0,2366.5,6.59265]
[1726597882772,6.63052364,2367.1,2366.2,2.4337]
[1726597882773,2.40582364,2367.1,2366.2,2.4337]
[1726597882973,5.54641701,2366.9,2366.3,4.2259]
[1726597883130,8.45007,2366.9,2366.3,4.2259]
[1726597883482,8.45005,2366.9,2366.3,4.2259]
[1726597883830,4.22502,2366.9,2366.3,4.2259]
[1726597884038,0.7886897,2366.8,2366.3,4.2259]
[1726597884361,8.45005,2366.9,2366.3,4.2259]
[1726597884969,4.22512,2366.8,2366.3,4.2259]
[1726597885376,2.3405,2367.0,2366.3,4.2259]
[1726597885533,2.3405,2367.0,2366.5,4.22564]
[1726597885735,0.7886497,2366.9,2366.5,4.22564]
[1726597885932,6.56532,2367.0,2366.5,8.45128]
[1726597885933,2.3405,2367.0,2366.5,8.45128]
[1726597886236,2.3405,2367.0,2366.5,4.22555]
[1726597886536,6.56526,2367.0,2366.5,4.22555]
[1726597886768,5.4360757,2366.9,2366.3,4.22586]
[1726597887135,4.22521,2366.8,2366.3,4.22586]
[1726597887366,4.22521,2366.8,2366.2,2.4337]
[1726597887367,4.22535,2366.7,2366.2,2.4337]
[1726597888176,4.22521,2366.8,2366.3,4.22597]
[1726597888335,2.53250271,2366.9,2366.4,4.22574]
[1726597888535,0.60851049,2366.8,2366.4,4.22574]
[1726597889233,0.60851049,2366.8,2366.5,4.22559]
[1726597889451,0.44164944,2366.7,2366.5,4.22559]
[1726597891645,0.44164944,2366.7,2366.6,4.22547]
[1726597891846,0.83693934,2366.7,2366.6,6.54927]
[1726597892341,0.44164944,2366.7,2366.6,6.54927]
[1726597892742,0.8369534,2366.7,2366.6,6.54927]
[1726597892967,0.44164944,2366.7,2366.6,6.54927]
[1726597893377,0.44164944,2366.7,2366.6,11.852226]
[1726597896587,0.44164944,2366.7,2366.6,10.77474]
[1726597897542,0.44164944,2366.7,2366.6,6.54927]
[1726597897738,0.83689153,2366.7,2366.6,6.54927]
[1726597899080,0.83689153,2366.7,2366.6,2.3238]
[1726597899285,0.83689153,2366.7,2366.4,6.49309]
[1726597899591,0.44164944,2366.7,2366.4,4.22579]
[1726597899735,1.17762459,2366.7,2366.4,4.22579]
[1726597900503,5.40292459,2366.7,2366.3,4.22598]
[1726597900773,5.40293459,2366.7,2366.3,4.22598]
[1726597900976,1.17762459,2366.7,2366.3,8.45189]
[1726597901187,1.17762459,2366.7,2366.3,4.22591]
[1726597901393,1.17762459,2366.7,2366.3,8.45183]
[1726597901753,1.17762459,2366.7,2366.3,4.22591]
[1726597901953,1.17762459,2366.7,2366.3,8.45183]
[1726597902291,1.17762459,2366.7,2366.3,8.45184]
[1726597903291,1.17762459,2366.7,2366.4,4.2258]
[1726597904872,0.44164944,2366.7,2366.4,4.2258]
[1726597905267,0.44164944,2366.7,2366.4,8.45154]
[1726597905464,0.44164944,2366.7,2366.4,4.22574]
[1726597906754,4.66700944,2366.7,2366.3,4.22598]
[1726597906991,0.44164944,2366.7,2366.5,4.22563]
[1726597907705,0.44164944,2366.7,2366.6,6.51857]
[1726597907866,0.44164944,2366.7,2366.6,10.74404]
[1726597908201,0.44164944,2366.7,2366.6,17.96951]
[1726597908496,0.44164944,2366.7,2366.6,24.79594019]
[1726597912189,0.44164944,2366.7,2366.6,29.73887078]
[1726597912434,0.44164944,2366.7,2366.6,25.51340078]
[1726597912605,0.44164944,2366.7,2366.6,20.57047019]
[1726597912757,0.44164944,2366.7,2366.6,13.74404]
[1726597913155,0.44164944,2366.7,2366.6,17.96951]
[1726597913999,0.44164944,2366.7,2366.6,22.91244059]
[1726597914158,0.44164944,2366.7,2366.6,31.91338059]
[1726597914470,0.44164944,2366.7,2366.6,26.97045]
[1726597914668,7.42,2367.2,2367.1,10.85874]
[1726597914998,7.42,2367.8,2367.5,4.22377]
[1726597915197,3.73837701,2367.9,2367.5,4.22377]
[1726597915198,7.96153701,2367.9,2367.5,4.22377]
[1726597915372,0.211645,2367.8,2367.4,8.44785]
[1726597915573,0.44158452,2367.7,2367.4,4.2239]
[1726597915763,0.44158452,2367.7,2367.6,4.22368]
[1726597917505,0.44158452,2367.7,2367.5,6.63335]
[1726597917708,0.44158452,2367.7,2367.6,4.22368]
[1726597918837,2.91368452,2367.7,2367.4,4.22402]
[1726597919038,3.62738597,2367.7,2367.4,4.22394]
[1726597919191,2.91368452,2367.7,2367.4,4.22394]
[1726597919529,0.44158452,2367.7,2367.4,4.22394]
[1726597919828,0.44158452,2367.7,2367.6,4.22368]
[1726597920032,0.44158452,2367.7,2367.6,8.44736]
[1726597920216,0.44158452,2367.7,2367.6,4.22368]
[1726597921131,0.44158452,2367.7,2367.5,8.4476]
[1726597921317,0.44158452,2367.7,2367.4,4.22395]
[1726597921492,0.90806497,2367.7,2367.4,4.22395]
[1726597921824,0.44158452,2367.7,2367.4,4.22395]
[1726597922392,0.44158452,2367.7,2367.5,4.22383]
[1726597922592,0.44158452,2367.7,2367.4,8.44791]
[1726597922899,0.44158452,2367.7,2367.4,4.22395]
[1726597923103,0.44158452,2367.7,2367.6,4.22368]
[1726597923491,0.44158452,2367.7,2367.6,8.44736]
[1726597925695,0.44158452,2367.7,2367.6,9.942245]
[1726597925896,0.44158452,2367.7,2367.6,16.532525]
[1726597926201,0.44158452,2367.7,2367.6,21.47545559]
[1726597927795,0.44158452,2367.7,2367.6,17.25177559]
[1726597928328,0.44158452,2367.7,2367.6,12.308845]
[1726597929531,0.44158452,2367.7,2367.6,4.22368]
[1726597933659,0.44158452,2367.7,2367.4,6.55141]
[1726597933939,0.44158452,2367.7,2367.5,4.22385]
[1726597934496,0.44158452,2367.7,2367.3,4.22406]
[1726597934497,2.2784,2367.6,2367.3,4.22412]
[1726597934697,2.2784,2367.6,2367.0,2.2693]
[1726597934698,2.2784,2367.6,2367.5,4.22386]
[1726597934934,2.2784,2367.6,2367.4,4.22398]
[1726597935102,2.2784,2367.6,2367.4,4.22396]
[1726597935507,2.2784,2367.6,2367.5,4.22386]
[1726597938033,0.44158452,2367.7,2367.5,4.22386]
[1726597938777,0.44158452,2367.7,2367.6,4.22368]
[1726597939255,0.44158452,2367.7,2367.6,8.44736]
[1726597940062,0.44158452,2367.7,2367.6,8.53182748]
[1726597940221,0.44158452,2367.7,2367.6,8.44736]
[1726597941323,0.44158452,2367.7,2367.6,12.67104]
[1726597941637,0.44158452,2367.7,2367.6,14.2721747]
[1726597942527,0.44158452,2367.7,2367.6,10.0484947]
[1726597945836,0.44158452,2367.7,2367.6,5.8248147]
[1726597946859,0.44158452,2367.7,2367.6,4.22368]
[1726597950983,0.44158452,2367.7,2367.3,4.22408]
[1726597951149,4.66517452,2367.7,2367.3,4.22408]
[1726597951342,5.98655153,2367.7,2367.3,4.22408]
[1726597951741,1.32137701,2367.6,2367.3,4.22408]
[1726597952045,2.495,2367.5,2367.3,4.22408]
[1726597952462,2.18566104,2367.7,2367.6,4.22368]
[1726597952650,1.76296153,2367.7,2367.6,4.22368]
[1726597953641,2.18566104,2367.7,2367.6,4.22368]
[1726597953856,2.1922433,2367.7,2367.6,4.22368]
[1726597954287,2.62709044,2367.7,2367.6,4.22368]
[1726597954994,2.19231447,2367.7,2367.6,4.22368]
[1726597955164,0.86428403,2367.7,2367.6,4.22368]
[1726597955370,2.41601673,2367.7,2367.6,4.22368]
[1726597955894,1.07588394,2367.7,2367.6,4.22368]
[1726597956253,1.07588394,2367.7,2365.8,3.69057425]
[1726597956254,2.4301,2367.6,2367.3,4.2242]
[1726597956494,1.53973761,2367.5,2367.3,4.22413]
[1726597956695,0.2116258,2367.4,2367.3,4.22413]
[1726597957493,0.84445384,2367.4,2367.3,4.22413]
[1726597957861,2.17256565,2367.4,2367.2,4.22437]
[1726597958055,0.84445384,2367.3,2367.1,4.22442]
[1726597958255,0.84445384,2367.3,2367.0,4.22473]
[1726597958256,0.63282804,2367.2,2367.0,4.22473]
[1726597958461,0.63282804,2367.1,2367.0,4.22467]
[1726597959194,1.32811181,2367.3,2367.0,8.44942]
[1726597959511,1.9609026,2367.2,2367.0,4.2246]
[1726597959660,1.72226668,2367.2,2367.1,4.22457]
[1726597959856,1.96091305,2367.2,2367.1,4.22457]
[1726597960056,1.96091305,2367.2,2367.0,8.44925]
[1726597960282,1.32811181,2367.2,2367.1,4.22457]
[1726597960596,1.96108599,2367.2,2367.1,4.22457]
[1726597961100,2.59194301,2367.2,2367.1,4.22457]
[1726597962082,2.59194301,2367.2,2366.8,4.22495]
[1726597962283,1.2638312,2367.1,2366.9,4.22493]
[1726597962525,1.32849376,2367.2,2366.9,4.22493]
[1726597962526,1.2638312,2367.0,2366.9,4.22493]
[1726597964819,1.23738789,2367.0,2366.9,8.44969]
[1726597964969,1.23738789,2367.0,2366.9,4.22476]
[1726597966017,2.3766,2366.9,2366.7,4.22522]
[1726597966197,0.62115791,2366.8,2366.7,4.22522]
[1726597966418,0.62115791,2366.8,2366.7,8.45051]
[1726597967099,1.25714148,2366.8,2366.7,8.45051]
[1726597967291,0.62115791,2366.8,2366.7,8.45051]
[1726597967490,0.62115791,2366.8,2366.7,10.36921525]
[1726597967931,1.25711263,2366.8,2366.7,8.45051]
[1726597969204,0.62115791,2366.8,2366.7,8.45051]
[1726597969431,1.32849376,2367.1,2366.8,4.22508]
[1726597970030,0.62561368,2367.0,2366.8,4.22496]
[1726597970241,1.32849376,2367.2,2366.9,4.22493]
[1726597970398,0.62561708,2367.1,2366.9,4.22493]
[1726597970594,0.62561708,2367.0,2366.8,4.22496]
[1726597970802,0.62561708,2366.9,2366.8,4.22496]
[1726597973235,5.55289376,2367.2,2366.8,4.22496]
[1726597973400,0.62564149,2367.1,2366.8,4.22496]
[1726597973602,0.62564149,2367.0,2366.8,4.22496]
[1726597973797,0.62564149,2366.9,2366.8,4.22496]
[1726597974317,7.14858149,2366.9,2366.5,3.0]
[1726597974640,1.76298564,2366.8,2366.6,4.22544]
[1726597974821,0.62564149,2366.7,2366.6,4.22544]
[1726597975230,0.62564149,2366.7,2366.6,8.45091]
[1726597975434,0.62564149,2366.7,2366.6,10.90201]
[1726597975622,2.3038,2367.1,2366.8,4.22497]
[1726597975995,3.63229376,2367.1,2366.8,4.22497]
[1726597976357,3.68898395,2367.1,2366.6,2.4511]
[1726597976512,3.63229376,2367.1,2366.6,2.4511]
[1726597976846,3.63229376,2367.1,2366.8,4.2251]
[1726597977050,0.21169121,2367.0,2366.8,4.2251]
[1726597977344,0.21169121,2367.0,2366.7,4.22527]
[1726597977345,2.3038,2367.1,2366.7,8.45047]
[1726597977558,0.21169501,2367.0,2366.7,8.45047]
[1726597977759,6.52838,2367.1,2366.7,4.2252]
[1726597978045,0.21170072,2367.0,2366.7,8.45036]
[1726597978210,2.3038,2367.1,2366.7,8.45036]
[1726597978414,0.21169373,2367.0,2366.7,4.22516]
[1726597978623,2.3038,2367.1,2366.7,8.45036]
[1726597978835,0.21169379,2367.0,2366.7,8.45036]
[1726597979040,2.3038,2367.1,2366.8,4.22501]
[1726597979449,1.32849376,2367.2,2366.8,4.22508]
[1726597979769,0.21169292,2367.1,2366.8,4.22508]
[1726597979962,5.55290376,2367.2,2366.8,4.22508]
[1726597980318,0.21169151,2367.1,2366.8,4.22508]
[1726597980746,0.42338271,2367.1,2366.8,4.22508]
[1726597980963,0.21169151,2367.1,2366.9,4.22484]
[1726597981657,2.3934,2367.0,2366.5,4.22553]
[1726597981872,4.225,2366.9,2366.5,4.22553]
[1726597982168,0.5606207,2366.9,2366.6,4.22544]
[1726597982320,7.94667376,2367.0,2366.6,4.22544]
[1726597985042,1.77033221,2367.4,2367.2,4.22422]
[1726597985250,0.44183845,2367.4,2367.2,4.22422]
[1726597985457,0.44183845,2367.4,2367.3,12.46434248]
[1726597985663,1.32849376,2367.8,2367.5,6.56732]
[1726597985972,8.74849376,2367.9,2367.6,4.22359]
[1726597986168,0.65344127,2367.7,2367.6,8.44716]
[1726597986372,0.65344127,2367.7,2367.4,4.22402]
[1726597986573,2.4722,2367.8,2367.5,4.22383]
[1726597986872,2.4722,2367.8,2367.6,4.22368]
[1726597987381,3.80069376,2368.0,2367.6,8.4472]
[1726597987663,0.2116204,2367.9,2367.7,4.22349]
[1726597987881,3.80069376,2368.0,2367.6,4.22359]
[1726597988172,0.21162024,2367.9,2367.6,4.22359]
[1726597988376,3.80069376,2368.0,2367.6,4.22354]
[1726597988555,0.21161881,2367.9,2367.6,6.53424]
[1726597988756,3.80069376,2368.0,2367.6,6.53424]
[1726597988959,0.2116196,2367.9,2367.7,4.22349]
[1726597989144,0.21161961,2367.9,2367.8,4.10036812]
[1726597989474,1.32849376,2368.4,2368.2,4.22261]
[1726597989674,1.32849376,2368.4,2368.3,4.22243]
[1726597989830,1.36747836,2368.6,2368.4,4.22221]
[1726597990029,0.0389846,2368.6,2368.5,4.22208]
[1726597990247,0.0389846,2368.6,2368.4,4.22221]
[1726597990451,0.0389846,2368.6,2368.2,8.44499]
[1726597990452,0.25054057,2368.6,2368.2,8.44499]
[1726597990743,0.0389846,2368.6,2368.2,4.22248]
[1726597991264,0.0389846,2368.6,2368.2,8.44499]
[1726597991476,0.0389846,2368.6,2368.2,4.22248]
[1726597991649,0.0389846,2368.6,2368.3,4.22241]
[1726597992173,0.0389846,2368.6,2368.4,4.22224]
[1726597992879,0.0389846,2368.6,2368.5,4.22208]
[1726597993079,0.0389846,2368.6,2368.4,8.44439]
[1726597993246,0.0389846,2368.6,2368.4,4.22215]
[1726597993448,0.0389846,2368.6,2368.4,4.22214]
[1726597993834,0.0389846,2368.6,2368.4,8.4443]
[1726597994034,0.0389846,2368.6,2368.3,4.22243]
[1726597994240,0.0389846,2368.6,2368.0,6.53357]
[1726597994474,0.0389846,2368.6,2368.1,4.22275]
[1726597994855,0.0389846,2368.6,2368.2,4.22259]
[1726597995471,0.0389846,2368.6,2368.2,8.44511]
[1726597996168,0.0389846,2368.6,2368.2,4.22252]
[1726597996572,0.0389846,2368.6,2368.2,8.44505]
[1726597996754,4.81140302,2368.6,2368.1,4.22278]
[1726597998046,2.2916,2368.5,2368.1,4.22278]
[1726597998844,2.2916,2368.5,2368.2,4.22259]
[1726598000065,6.51369,2368.5,2368.1,4.22278]
[1726598000269,6.51369,2368.5,2367.9,4.22304]
[1726598000270,4.22253,2368.3,2367.9,4.2231]
[1726598001288,6.59533,2368.2,2367.8,4.22319]
[1726598001459,6.59533,2368.2,2367.8,4.2233]
[1726598001644,2.3727,2368.2,2367.8,4.2233]
[1726598002979,7.29906267,2368.2,2367.7,8.4468]
[1726598003180,7.29906267,2368.2,2367.7,4.22337]
[1726598003358,2.3135,2367.9,2367.5,4.22373]
[1726598004193,2.3135,2367.9,2367.3,4.22412]
[1726598004194,6.53668,2367.9,2367.3,4.22412]
[1726598004347,6.53667,2367.9,2367.4,4.22394]
[1726598004547,11.8359,2367.9,2367.4,4.22394]
[1726598005084,4.22341,2367.8,2367.3,8.44825]
[1726598005289,4.22341,2367.8,2367.4,4.22402]
[1726598005587,4.22341,2367.8,2367.3,4.22411]
[1726598005778,5.37730637,2367.8,2367.3,4.22411]
[1726598005986,4.22353,2367.7,2367.3,4.22411]
[1726598006160,4.22353,2367.7,2367.3,4.22421]
[1726598006574,4.22415,2367.4,2366.9,6.69353]
[1726598006757,4.22415,2367.4,2366.8,4.22495]
[1726598007106,4.22395,2367.5,2367.0,4.22474]
[1726598007305,4.22395,2367.5,2367.0,4.22467]
[1726598007510,2.4966,2367.6,2367.2,4.22439]
[1726598007672,2.4966,2367.6,2367.2,4.22438]
[1726598008099,6.72029,2367.6,2367.2,4.22438]
[1726598008410,6.72029,2367.6,2367.1,4.22457]
[1726598008705,4.22395,2367.5,2367.1,4.22449]
[1726598010393,4.22439,2367.3,2366.8,2.4687]
[1726598010571,6.51769,2367.2,2366.8,4.22511]
[1726598010765,6.51769,2367.2,2366.7,4.22515]
[1726598011606,5.55227376,2367.6,2367.1,4.22457]
[1726598011805,2.2932,2367.5,2367.1,4.22447]
[1726598011963,6.51706,2367.5,2367.0,4.22472]
[1726598012706,2.2932,2367.5,2367.1,5.069442]
[1726598012866,10.85424,2367.8,2367.2,4.22424]
[1726598013068,4.22362,2367.7,2367.2,8.44856]
[1726598013585,4.22362,2367.7,2367.2,4.22424]
[1726598014394,4.22362,2367.7,2367.2,8.44856]
[1726598014763,6.63074,2367.8,2367.3,4.22405]
[1726598014963,4.22353,2367.7,2367.1,4.86085448]
[1726598015205,4.22353,2367.7,2367.3,4.22421]
[1726598015715,6.63065,2367.8,2367.4,4.22401]
[1726598016003,6.64365,2368.1,2367.5,4.22371]
[1726598016208,4.22298,2368.0,2367.6,4.22358]
[1726598016501,4.22333,2367.8,2367.4,6.67413]
[1726598017003,4.22315,2367.9,2367.4,6.67413]
[1726598017392,4.22343,2367.8,2367.4,2.4502]
[1726598017648,4.22379,2367.6,2367.1,4.22449]
[1726598017805,4.22379,2367.6,2367.2,4.22439]
[1726598018112,8.44758,2367.6,2367.1,4.22449]
[1726598018605,4.22379,2367.6,2367.1,8.44897]
[1726598018783,4.22379,2367.6,2367.1,4.22448]
[1726598019507,4.22379,2367.6,2367.1,8.44897]
[1726598019694,2.8626014,2367.7,2367.2,4.22433]
[1726598019896,0.40285391,2367.6,2367.4,4.22396]
[1726598020082,2.8626014,2367.7,2367.4,4.22396]
[1726598021411,0.40288272,2367.6,2367.4,4.22396]
[1726598021614,2.8626014,2367.7,2367.4,4.22396]
[1726598021798,0.4029016,2367.6,2367.5,4.22382]
[1726598021981,0.40290018,2367.6,2367.5,4.22382]
[1726598022712,0.4419014,2367.7,2367.6,4.22368]
[1726598023015,0.4419014,2367.7,2367.6,8.44736]
[1726598023177,0.4419014,2367.7,2367.6,5.3832877]
[1726598023890,0.84486628,2367.7,2367.6,5.3832877]
[1726598024083,0.4419014,2367.7,2367.6,5.3832877]
[1726598024315,0.84482279,2367.7,2367.6,5.3832877]
[1726598024617,0.4419014,2367.7,2367.6,9.6069677]
[1726598025418,0.84480398,2367.7,2367.6,5.3832877]
[1726598025620,0.84478921,2367.7,2367.6,5.3832877]
[1726598025786,0.84478921,2367.7,2367.5,4.22384]
[1726598025993,0.4419014,2367.7,2367.5,4.22374]
[1726598026176,0.4419014,2367.7,2367.6,4.22368]
[1726598026378,0.84476538,2367.7,2367.6,4.22368]
[1726598027306,0.4419014,2367.7,2367.6,4.22368]
[1726598027711,0.84477338,2367.7,2367.6,4.22368]
[1726598029540,0.84477338,2367.7,2367.5,4.22382]
[1726598029848,0.40287198,2367.6,2367.5,4.22382]
[1726598030554,0.4419014,2367.7,2367.6,4.22368]
[1726598031137,1.48977449,2367.7,2367.6,4.22368]
[1726598031820,2.53767772,2367.7,2367.6,4.22368]
[1726598032454,1.89281419,2367.7,2367.6,4.22368]
[1726598032745,1.89281419,2367.7,2367.5,5.298994]
[1726598032746,2.53763972,2367.7,2367.5,4.22382]
[1726598032951,1.04783595,2367.6,2367.4,4.22401]
[1726598033108,3.85197449,2367.7,2367.5,4.22386]
[1726598033418,1.04774288,2367.6,2367.5,4.22386]
[1726598033622,1.04774288,2367.6,2367.5,8.44772]
[1726598033946,1.04774288,2367.6,2367.5,9.292492]
[1726598033947,0.40297803,2367.6,2367.5,9.292492]
[1726598034147,0.40297803,2367.6,2367.5,15.59999448]
[1726598034645,3.76969376,2368.1,2367.7,4.22336]
[1726598035057,0.85644791,2368.0,2367.7,4.22336]
[1726598035351,0.40302725,2367.9,2367.7,4.22336]
[1726598035648,1.04786337,2367.8,2367.7,4.22336]
[1726598036345,1.03703842,2367.8,2367.7,4.22336]
[1726598038253,1.32849376,2368.0,2367.6,4.22363]
[1726598038452,3.44214802,2367.8,2367.6,4.22363]
[1726598038618,3.44214802,2367.8,2367.4,4.22388]
[1726598038619,1.03024802,2367.7,2367.5,4.22384]
[1726598038807,1.03024802,2367.6,2367.5,4.22386]
[1726598039754,1.03024802,2367.6,2367.3,4.22418]
[1726598039921,7.96373376,2367.8,2367.3,4.22418]
[1726598039922,1.03024802,2367.5,2367.4,4.22387]
[1726598040257,1.32849376,2367.8,2367.6,4.22368]
[1726598040470,1.64062794,2367.7,2367.6,4.22368]
[1726598040658,1.64062794,2367.7,2367.5,4.22385]
[1726598040867,1.64062794,2367.6,2367.5,4.22385]
[1726598041009,1.64059135,2367.6,2367.5,4.22385]
[1726598041215,1.64051879,2367.6,2367.5,8.44771]
[1726598041414,1.64051879,2367.6,2367.5,9.292481]
[1726598041729,1.64051879,2367.6,2367.5,8.44771]
[1726598042638,1.85214901,2367.6,2367.5,4.22385]
[1726598042958,4.26804901,2367.6,2367.4,4.22391]
[1726598043153,1.85214901,2367.5,2367.4,4.22391]
[1726598043334,1.85214901,2367.5,2367.4,8.44795]
[1726598043512,1.64051879,2367.5,2367.4,9.524715]
[1726598044158,1.01268295,2367.5,2367.4,9.524715]
[1726598044324,1.64053329,2367.5,2367.4,4.22391]
[1726598044525,1.01268295,2367.5,2367.4,4.22391]
[1726598044763,0.62783445,2367.5,2367.4,4.22391]
[1726598044955,1.87750402,2367.5,2367.4,4.22391]
[1726598045251,1.24966957,2367.5,2367.4,4.22391]
[1726598045451,1.24966957,2367.5,2367.4,9.524722]
[1726598046554,1.03802909,2367.5,2367.4,9.524722]
[1726598047755,4.43624558,2367.7,2367.6,4.22368]
[1726598048057,2.5593203,2367.7,2367.6,4.22368]
[1726598050561,3.62181979,2367.7,2367.6,4.22368]
[1726598050718,3.62181979,2367.7,2367.5,4.22386]
[1726598050914,1.64094955,2367.6,2367.5,4.22386]
[1726598052326,1.02040459,2367.6,2367.5,4.22386]
[1726598052671,1.23202839,2367.6,2367.5,4.22386]
[1726598053558,2.55931427,2367.6,2367.5,4.22386]
[1726598054068,1.23202839,2367.6,2367.5,4.22386]
[1726598054373,2.55931427,2367.6,2367.5,8.44772]
[1726598054573,1.23202839,2367.6,2367.5,8.44772]
[1726598055035,1.76924041,2367.7,2367.5,8.44772]
[1726598055231,1.25921419,2367.6,2367.5,8.44772]
[1726598056443,1.25921419,2367.6,2367.5,4.22386]
[1726598056647,1.04758994,2367.6,2367.5,4.22386]
[1726598057434,2.37487582,2367.6,2367.5,4.22386]
[1726598057962,2.37487582,2367.6,2367.5,8.44772]
[1726598058162,1.04758994,2367.6,2367.5,9.92067225]
[1726598058341,2.37487582,2367.6,2367.5,9.92067225]
[1726598059170,2.37487582,2367.6,2367.5,8.44772]
[1726598060473,2.37487582,2367.6,2367.5,4.22386]
[1726598060682,1.04758994,2367.6,2367.5,4.22386]
[1726598060877,2.82074588,2367.6,2367.2,4.22428]
[1726598061188,1.32981894,2367.4,2367.3,4.22415]
[1726598061346,2.82074588,2367.4,2367.3,4.22415]
[1726598061785,1.04758994,2367.4,2367.3,4.22415]
[1726598061989,2.37743888,2367.4,2367.3,4.22415]
[1726598062369,2.37738329,2367.4,2367.3,4.22415]
[1726598063457,3.01404487,2367.4,2367.3,4.22415]
[1726598063657,3.2257183,2367.4,2367.3,4.22415]
[1726598064993,2.58921988,2367.4,2367.3,4.22415]
[1726598065185,3.22573962,2367.4,2367.3,4.22415]
[1726598065682,0.63644176,2367.4,2367.3,4.22415]
[1726598065867,3.67777189,2367.4,2367.3,4.22415]
[1726598066068,3.67777189,2367.4,2367.2,4.22428]
[1726598066298,2.3122,2367.0,2366.7,4.2252]
[1726598066526,2.3122,2367.0,2366.6,4.22545]
[1726598066527,1.32933515,2366.8,2366.6,4.22545]
[1726598066815,1.32933515,2366.8,2366.7,4.22529]
[1726598066989,3.21528063,2366.8,2366.7,4.22529]
[1726598067189,3.21528063,2366.8,2366.6,4.22537]
[1726598067400,4.08464687,2367.0,2366.4,4.22581]
[1726598067401,3.21528063,2366.7,2366.4,4.22581]
[1726598067635,4.35054548,2366.6,2366.4,4.22581]
[1726598067926,1.88594548,2366.5,2366.2,10.92774]
[1726598068085,3.78326869,2366.4,2366.0,4.22643]
[1726598068292,3.21528063,2366.3,2366.1,4.22634]
[1726598068598,1.67424677,2366.2,2366.1,4.22636]
[1726598068800,1.67424677,2366.2,2366.0,4.22653]
[1726598068981,1.67424677,2366.1,2366.0,4.22653]
[1726598069181,1.03532754,2366.1,2366.0,4.22653]
[1726598070418,0.39932452,2366.1,2366.0,4.22653]
[1726598070622,0.63584929,2366.1,2366.0,4.22653]
[1726598070933,0.39912149,2366.1,2366.0,4.22653]
[1726598071218,4.22565,2366.5,2366.0,4.22653]
[1726598071418,1.67356121,2366.4,2366.0,4.22653]
[1726598071589,1.03497231,2366.3,2366.0,4.22653]
[1726598071791,1.03497231,2366.2,2366.0,4.22653]
[1726598072001,5.6274102,2366.5,2366.0,4.22653]
[1726598072002,0.63585425,2366.1,2366.0,4.22653]
[1726598072186,1.03485619,2366.1,2365.9,4.22671]
[1726598072388,1.03485619,2366.1,2365.8,0.0389846]
[1726598072389,2.3321,2366.2,2365.8,4.2657846]
[1726598072750,2.3321,2366.2,2365.8,0.0389846]
[1726598072751,1.69067922,2366.1,2365.8,0.0389846]
[1726598073022,5.26141922,2366.0,2365.8,0.0389846]
[1726598073323,0.63560256,2365.9,2365.8,0.0389846]
[1726598074242,4.88221,2366.1,2365.8,0.0389846]
[1726598074430,6.67712,2365.9,2365.8,0.0389846]
[1726598074636,7.31262437,2365.9,2365.8,0.0389846]
[1726598074950,7.71152866,2365.9,2365.8,0.0389846]
[1726598075617,7.71145231,2365.9,2365.8,0.0389846]
[1726598075829,19.14646248,2365.9,2365.8,0.0389846]
[1726598076134,18.4286092,2365.9,2365.8,0.0389846]
[1726598076307,19.06642967,2365.9,2365.8,0.0389846]
[1726598076745,9.7872775,2365.9,2365.8,0.0389846]
[1726598076903,3.08555015,2365.9,2365.8,0.0389846]
[1726598077226,2.4504,2365.9,2365.8,0.0389846]
[1726598078241,6.67712,2365.9,2365.8,0.0389846]